fUST/lending_fUST_20250628
["ID","MTS","AMOUNT","RATE_DAILY","PERIOD"]
[368308429,1751107850308,-742.6949969,0.00020812,2]
[368308430,1751107850317,-151.0,0.00020821,2]
[368308431,1751107850326,-151.0,0.00020821,2]
[368308432,1751107850336,-151.0,0.00020821,2]
[368308433,1751107850344,-151.0,0.00020821,2]
[368308434,1751107850353,-460.0,0.00020821,2]
[368308435,1751107850363,-151.0,0.00020821,2]
[368308436,1751107850373,-151.0,0.00020821,2]
[368308437,1751107850382,-460.0,0.00020821,2]
[368308438,1751107850392,-505.15,0.00020821,2]
[368308439,1751107850401,-460.0,0.00020821,2]
[368308440,1751107850412,-724.12,0.00020821,2]
[368308441,1751107850421,-460.0,0.00020821,2]
[368308442,1751107850429,-460.0,0.00020821,2]
[368308443,1751107850438,-460.0,0.00020821,2]
[368308444,1751107850448,-982.63,0.00020821,2]
[368308445,1751107850457,-460.0,0.00020821,2]
[368308446,1751107850467,-1598.57,0.00020821,2]
[368308447,1751107850476,-620.2,0.00020821,2]
[368308448,1751107850486,-484.88,0.00020821,2]
[368308449,1751107850495,-460.0,0.00020821,2]
[368308450,1751107850504,-483.77,0.00020821,2]
[368308451,1751107850514,-460.0,0.00020821,2]
[368308452,1751107850523,-460.0,0.00020821,2]
[368308453,1751107850532,-554.23,0.00020821,2]
[368308454,1751107850541,-937.25,0.00020821,2]
[368308455,1751107850551,-460.0,0.00020821,2]
[368308456,1751107850560,-460.0,0.00020821,2]
[368308457,1751107850569,-1844.04,0.00020821,2]
[368308458,1751107850578,-2290.42,0.00020821,2]
[368308459,1751107850588,-625.05,0.00020821,2]
[368308460,1751107850597,-894.13,0.00020821,2]
[368308461,1751107850606,-460.0,0.00020821,2]
[368308462,1751107850616,-586.39,0.00020821,2]
[368308463,1751107850625,-3082.45,0.00020821,2]
[368308464,1751107850635,-2384.48,0.00020821,2]
[368308465,1751107850644,-542.91,0.00020821,2]
[368308466,1751107850654,-460.0,0.00020821,2]
[368308467,1751107850663,-662.57,0.00020821,2]
[368308468,1751107850673,-306.82598111,0.00020821,2]
[368308469,1751107850682,-508.65,0.00020821,2]
[368308470,1751107850692,-1756.01,0.00020821,2]
[368308471,1751107850701,-460.0,0.00020821,2]
[368308472,1751107850710,-460.0,0.00020821,2]
[368308473,1751107850720,-460.0,0.00020821,2]
[368308474,1751107850729,-190.67,0.00020821,2]
[368308475,1751107850739,-460.0,0.00020821,2]
[368308476,1751107850750,-1580.07,0.00020821,2]
[368308477,1751107850760,-460.0,0.00020821,2]
[368308478,1751107850770,-1519.25,0.00020821,2]
[368308479,1751107850779,-3328.36,0.00020821,2]
[368308480,1751107850794,-460.0,0.00020821,2]
[368308481,1751107850803,-1369.75,0.00020821,2]
[368308482,1751107850812,-151.0,0.00020821,2]
[368308483,1751107850821,-151.0,0.00020821,2]
[368308484,1751107850831,-491.44,0.00020821,2]
[368308485,1751107850841,-460.0,0.00020821,2]
[368308486,1751107850851,-485.48,0.00020821,2]
[368308487,1751107850860,-3736.37,0.00020821,2]
[368308488,1751107850870,-492.69,0.00020821,2]
[368308489,1751107850879,-460.0,0.00020821,2]
[368308490,1751107850889,-835.54,0.00020821,2]
[368308491,1751107850899,-577.11,0.00020821,2]
[368308492,1751107850909,-460.0,0.00020821,2]
[368308493,1751107850918,-1751.0,0.00020821,2]
[368308494,1751107850928,-1367.17,0.00020821,2]
[368308495,1751107850937,-1278.28,0.00020821,2]
[368308496,1751107850947,-460.0,0.00020821,2]
[368308497,1751107850957,-537.21,0.00020821,2]
[368308498,1751107850967,-501.32,0.00020821,2]
[368308499,1751107850977,-1034.74,0.00020821,2]
[368308500,1751107850987,-2391.36,0.00020821,2]
[368308501,1751107850997,-460.0,0.00020821,2]
[368308502,1751107851008,-770.17471178,0.00020867,2]
[368308503,1751107851018,-1500.0,0.00020898,2]
[368308504,1751107851027,-1500.0,0.00020898,2]
[368308505,1751107851037,-334.14886311,0.00020922,2]
[368308506,1751107851047,-6766.37400411,0.00020934,4]
[368308507,1751107851056,-500.0,0.00020958,15]
[368308508,1751107851067,-1500.0,0.00020965,2]
[368308509,1751107851076,-5000.0,0.00021086,2]
[368308510,1751107851086,-460.0,0.00021095,2]
[368308511,1751107851096,-460.0,0.00021095,2]
[368308512,1751107851106,-505.15,0.00021095,2]
[368308513,1751107851115,-460.0,0.00021095,2]
[368308514,1751107851125,-724.12,0.00021095,2]
[368308515,1751107851134,-460.0,0.00021095,2]
[368308516,1751107851144,-460.0,0.00021095,2]
[368308517,1751107851156,-460.0,0.00021095,2]
[368308518,1751107851166,-982.63,0.00021095,2]
[368308519,1751107851176,-184.67396051,0.00021095,2]
[368308520,1751107851185,-1598.57,0.00021095,2]
[368308521,1751107851195,-620.2,0.00021095,2]
[368308522,1751107851204,-484.88,0.00021095,2]
[368308523,1751107851214,-460.0,0.00021095,2]
[368308524,1751107851223,-404.24,0.00021095,2]
[368308525,1751107851233,-483.77,0.00021095,2]
[368308526,1751107851242,-460.0,0.00021095,2]
[368308527,1751107851252,-554.23,0.00021095,2]
[368308528,1751107851262,-937.25,0.00021095,2]
[368308529,1751107851272,-460.0,0.00021095,2]
[368308530,1751107851281,-460.0,0.00021095,2]
[368308531,1751107851291,-1844.04,0.00021095,2]
[368308532,1751107851301,-2290.42,0.00021095,2]
[368308533,1751107851310,-625.05,0.00021095,2]
[368308534,1751107851320,-621.14057747,0.00021095,2]
[368308535,1751107851633,-272.98942253,0.00021095,2]
[368308536,1751107851643,-460.0,0.00021095,2]
[368308537,1751107851653,-586.39,0.00021095,2]
[368308538,1751107851662,-3082.45,0.00021095,2]
[368308539,1751107851671,-2384.48,0.00021095,2]
[368308540,1751107851680,-542.91,0.00021095,2]
[368308541,1751107851689,-460.0,0.00021095,2]
[368308542,1751107851699,-662.57,0.00021095,2]
[368308543,1751107851708,-508.65,0.00021095,2]
[368308544,1751107851718,-1756.01,0.00021095,2]
[368308545,1751107851728,-460.0,0.00021095,2]
[368308546,1751107851738,-460.0,0.00021095,2]
[368308547,1751107851747,-460.0,0.00021095,2]
[368308548,1751107851756,-460.0,0.00021095,2]
[368308549,1751107851765,-946.20833836,0.00021095,2]
[368308550,1751107851777,-633.86166164,0.00021095,2]
[368308551,1751107851788,-460.0,0.00021095,2]
[368308552,1751107851798,-1519.25,0.00021095,2]
[368308553,1751107851808,-3328.36,0.00021095,2]
[368308554,1751107851817,-460.0,0.00021095,2]
[368308555,1751107851826,-1369.75,0.00021095,2]
[368308556,1751107851836,-491.44,0.00021095,2]
[368308557,1751107851846,-460.0,0.00021095,2]
[368308558,1751107851855,-485.48,0.00021095,2]
[368308559,1751107851864,-3012.31155375,0.00021095,2]
[368308560,1751107852017,-460.0,0.00019178,2]
[368308561,1751107852026,-67.69100549,0.00019178,2]
[368308562,1751107852037,-331.0,0.00019178,2]
[368308563,1751107852049,-61.30899451,0.00019178,2]
[368308564,1751107852059,-540.0,0.00019726,2]
[368308565,1751107852069,-460.0,0.0002,2]
[368308566,1751107852078,-460.0,0.00020273,2]
[368308567,1751107852088,-460.0,0.00020547,2]
[368308568,1751107852097,-460.0,0.00020821,2]
[368308569,1751107852106,-375.18425032,0.00021095,2]
[368308570,1751107852122,-348.87419593,0.00021095,2]
[368308571,1751107852132,-492.69,0.00021095,2]
[368308572,1751107852142,-172.41940407,0.00021095,2]
[368308573,1751107852153,-287.58059593,0.00021095,2]
[368308574,1751107852162,-92.63064827,0.00021095,2]
[368308575,1751107852174,-742.90935173,0.00021095,2]
[368308576,1751107852183,-573.48334876,0.00021095,2]
[368308577,1751107852288,-3.62665124,0.00021095,2]
[368308578,1751107852298,-460.0,0.00021095,2]
[368308579,1751107852307,-1751.0,0.00021095,2]
[368308580,1751107852316,-1367.17,0.00021095,2]
[368308581,1751107852325,-1278.28,0.00021095,2]
[368308582,1751107852335,-460.0,0.00021095,2]
[368308583,1751107852344,-332.19354062,0.00021095,2]
[368308584,1751107852355,-205.01645938,0.00021095,2]
[368308585,1751107852365,-501.32,0.00021095,2]
[368308586,1751107852375,-378.75634369,0.00021095,2]
[368308587,1751107852395,-655.98365631,0.00021095,2]
[368308588,1751107852404,-365.14634369,0.00021095,2]
[368308589,1751107852415,-2026.21365631,0.00021095,2]
[368308590,1751107852424,-422.91590954,0.00021095,2]
[368308591,1751107852433,-460.0,0.00021095,2]
[368308592,1751107852442,-177.4788171,0.00021096,2]
[368308593,1751107852451,-307.3890461,0.00021096,2]
[368308594,1751107852461,-159.266168,0.00021096,2]
[368308595,1751107852470,-159.266168,0.00021096,2]
[368308596,1751107852479,-177.5104021,0.00021096,2]
[368308597,1751107852488,-177.5104021,0.00021096,2]
[368308598,1751107852497,-159.266168,0.00021096,2]
[368308599,1751107852507,-2917.0,0.00021123,2]
[368308600,1751107852516,-151.0,0.00021133,4]
[368308601,1751107852525,-6766.37400411,0.00021141,4]
[368308602,1751107852534,-2917.0,0.0002115,2]
[368308603,1751107852543,-2917.0,0.00021178,2]
[368308604,1751107852553,-1017.61085888,0.00021195,2]
[368308605,1751107852562,-151.0,0.00021195,2]
[368308606,1751107852571,-151.0,0.00021195,2]
[368308607,1751107852580,-151.0,0.00021195,2]
[368308608,1751107852589,-5000.0,0.00021195,2]
[368308609,1751107852599,-25000.0,0.00021195,2]
[368308610,1751107852608,-2917.0,0.00021205,2]
[368308611,1751107852618,-2917.0,0.00021233,2]
[368308612,1751107852627,-2917.0,0.0002126,2]
[368308613,1751107852637,-177.41445,0.00021267,5]
[368308614,1751107852646,-2917.0,0.00021287,2]
[368308615,1751107852656,-159.7516344,0.00021288,2]
[368308616,1751107852665,-160.0,0.00021304,2]
[368308617,1751107852674,-160.0,0.00021304,2]
[368308618,1751107852683,-160.0,0.00021304,2]
[368308619,1751107852693,-160.0,0.00021304,2]
[368308620,1751107852702,-160.0,0.00021304,2]
[368308621,1751107852711,-160.0,0.00021304,2]
[368308622,1751107852720,-2917.0,0.00021315,2]
[368308623,1751107852729,-2917.0,0.00021342,2]
[368308624,1751107852738,-160.0,0.00021346,2]
[368308625,1751107852748,-501.07304202,0.00021346,2]
[368308626,1751107852757,-6766.37400411,0.00021348,5]
[368308627,1751107852767,-151.0,0.0002136,4]
[368308628,1751107852776,-151.0,0.00021369,2]
[368308629,1751107852788,-490.514659,0.00021369,2]
[368308630,1751107852799,-490.514659,0.00021369,2]
[368308631,1751107852808,-151.0,0.00021369,2]
[368308632,1751107852817,-151.0,0.00021369,2]
[368308633,1751107852826,-460.0,0.00021369,2]
[368308634,1751107852836,-505.15,0.00021369,2]
[368308635,1751107852845,-460.0,0.00021369,2]
[368308636,1751107852854,-724.12,0.00021369,2]
[368308637,1751107852864,-460.0,0.00021369,2]
[368308638,1751107852873,-460.0,0.00021369,2]
[368308639,1751107852883,-982.63,0.00021369,2]
[368308640,1751107852892,-1598.57,0.00021369,2]
[368308641,1751107852901,-620.2,0.00021369,2]
[368308642,1751107852913,-484.88,0.00021369,2]
[368308643,1751107852923,-460.0,0.00021369,2]
[368308644,1751107852932,-483.77,0.00021369,2]
[368308645,1751107852941,-460.0,0.00021369,2]
[368308646,1751107852951,-554.23,0.00021369,2]
[368308647,1751107852960,-460.0,0.00021369,2]
[368308648,1751107852970,-937.25,0.00021369,2]
[368308649,1751107852980,-460.0,0.00021369,2]
[368308650,1751107852990,-1844.04,0.00021369,2]
[368308651,1751107852999,-2290.42,0.00021369,2]
[368308652,1751107853009,-625.05,0.00021369,2]
[368308653,1751107853018,-894.13,0.00021369,2]
[368308654,1751107853028,-460.0,0.00021369,2]
[368308655,1751107853037,-586.39,0.00021369,2]
[368308656,1751107853047,-3082.45,0.00021369,2]
[368308657,1751107853056,-500.0,0.00021369,16]
[368308658,1751107853065,-2384.48,0.00021369,2]
[368308659,1751107853076,-542.91,0.00021369,2]
[368308660,1751107853085,-460.0,0.00021369,2]
[368308661,1751107853095,-662.57,0.00021369,2]
[368308662,1751107853104,-508.65,0.00021369,2]
[368308663,1751107853114,-1756.01,0.00021369,2]
[368308664,1751107853124,-460.0,0.00021369,2]
[368308665,1751107853133,-460.0,0.00021369,2]
[368308666,1751107853142,-460.0,0.00021369,2]
[368308667,1751107853151,-460.0,0.00021369,2]
[368308668,1751107853161,-1580.07,0.00021369,2]
[368308669,1751107853170,-460.0,0.00021369,2]
[368308670,1751107853178,-1519.25,0.00021369,2]
[368308671,1751107853188,-3328.36,0.00021369,2]
[368308672,1751107853197,-460.0,0.00021369,2]
[368308673,1751107853206,-1369.75,0.00021369,2]
[368308674,1751107853215,-491.44,0.00021369,2]
[368308675,1751107853224,-460.0,0.00021369,2]
[368308676,1751107853233,-485.48,0.00021369,2]
[368308677,1751107853242,-3736.37,0.00021369,2]
[368308678,1751107853251,-492.69,0.00021369,2]
[368308679,1751107853260,-152.302486,0.00021369,2]
[368308680,1751107853269,-460.0,0.00021369,2]
[368308681,1751107853279,-835.54,0.00021369,2]
[368308682,1751107853289,-577.11,0.00021369,2]
[368308683,1751107853298,-425.568627,0.00021369,2]
[368308684,1751107853307,-541.67896734,0.00021369,2]
[368308685,1751107853316,-1751.0,0.00021369,2]
[368308686,1751107853325,-1367.17,0.00021369,2]
[368308687,1751107853334,-1278.28,0.00021369,2]
[368308688,1751107853343,-425.568627,0.00021369,2]
[368308689,1751107853353,-460.0,0.00021369,2]
[368308690,1751107853362,-151.0,0.00021369,2]
[368308691,1751107853372,-537.21,0.00021369,2]
[368308692,1751107853383,-501.32,0.00021369,2]
[368308693,1751107853392,-1034.74,0.00021369,2]
[368308694,1751107853401,-2391.36,0.00021369,2]
[368308695,1751107853411,-460.0,0.00021369,2]
[368308696,1751107853420,-2917.0,0.0002137,2]
[368308697,1751107853430,-1340.0,0.00021375,2]
[368308698,1751107853439,-2268.18379244,0.00021397,2]
[368308699,1751107853452,-648.81620756,0.00021397,2]
[368308700,1751107853461,-160.0,0.00021422,2]
[368308701,1751107853470,-160.0,0.00021422,2]
[368308702,1751107853480,-160.0,0.00021422,2]
[368308703,1751107853489,-2917.0,0.00021424,2]
[368308704,1751107853498,-2000.0,0.00021446,2]
[368308705,1751107853508,-1504.88847929,0.00021446,2]
[368308706,1751107853517,-500.0,0.0002145,2]
[368308707,1751107853527,-2917.0,0.00021452,2]
[368308708,1751107853536,-168.05127452,0.00021453,2]
[368308709,1751107853545,-2917.0,0.00021479,2]
[368308710,1751107853554,-2917.0,0.00021507,2]
[368308711,1751107853563,-501.43460765,0.00021507,2]
[368308712,1751107853573,-500.0,0.00021507,2]
[368308713,1751107853582,-500.0,0.00021507,2]
[368308714,1751107853591,-600.0,0.00021507,2]
[368308715,1751107853600,-497.23529535,0.00021507,2]
[368308716,1751107853609,-260.73459404,0.00021507,2]
[368308717,1751107853618,-500.0,0.00021507,2]
[368308718,1751107853628,-501.21778933,0.00021507,2]
[368308719,1751107853637,-569.85238274,0.00021507,2]
[368308720,1751107853646,-501.49161915,0.00021507,2]
[368308721,1751107853656,-2000.0,0.00021513,2]
[368308722,1751107853666,-177.41445,0.0002153,6]
[368308723,1751107853676,-2917.0,0.00021534,2]
[368308724,1751107853686,-260.0,0.00021536,2]
[368308725,1751107853695,-538.906069,0.0002156,4]
[368308726,1751107853704,-60109.47098,0.00021561,2]
[368308727,1751107853713,-2917.0,0.00021561,2]
[368308728,1751107853723,-159.75163439,0.00021562,2]
[368308729,1751107853733,-159.7516344,0.00021562,2]
[368308730,1751107853742,-159.7516344,0.00021562,2]
[368308731,1751107853751,-159.75163439,0.00021562,2]
[368308732,1751107853760,-260.0,0.00021571,2]
[368308733,1751107853770,-151.0,0.00021587,5]
[368308734,1751107853779,-2917.0,0.00021589,2]
[368308735,1751107853795,-20000.0,0.000216,5]
[368308736,1751107853804,-2917.0,0.00021616,2]
[368308737,1751107853813,-260.0,0.00021621,2]
[368308738,1751107853822,-587.0,0.00021628,2]
[368308739,1751107853832,-460.0,0.00021643,2]
[368308740,1751107853841,-505.15,0.00021643,2]
[368308741,1751107853850,-460.0,0.00021643,2]
[368308742,1751107853859,-724.12,0.00021643,2]
[368308743,1751107853986,-166.84490938,0.00021643,2]
[368308744,1751107853996,-460.0,0.00021643,2]
[368308745,1751107854007,-161.296516,0.00021643,2]
[368308746,1751107854017,-982.63,0.00021643,2]
[368308747,1751107854026,-151.0,0.00021643,2]
[368308748,1751107854035,-151.0,0.00021643,2]
[368308749,1751107854044,-1598.57,0.00021643,2]
[368308750,1751107854054,-620.2,0.00021643,2]
[368308751,1751107854063,-484.88,0.00021643,2]
[368308752,1751107854073,-460.0,0.00021643,2]
[368308753,1751107854082,-483.77,0.00021643,2]
[368308754,1751107854091,-460.0,0.00021643,2]
[368308755,1751107854101,-554.23,0.00021643,2]
[368308756,1751107854111,-937.25,0.00021643,2]
[368308757,1751107854120,-460.0,0.00021643,2]
[368308758,1751107854130,-460.0,0.00021643,2]
[368308759,1751107854139,-1844.04,0.00021643,2]
[368308760,1751107854149,-2290.42,0.00021643,2]
[368308761,1751107854158,-625.05,0.00021643,2]
[368308762,1751107854168,-894.13,0.00021643,2]
[368308763,1751107854177,-460.0,0.00021643,2]
[368308764,1751107854186,-586.39,0.00021643,2]
[368308765,1751107854195,-3082.45,0.00021643,2]
[368308766,1751107854205,-2384.48,0.00021643,2]
[368308767,1751107854214,-542.91,0.00021643,2]
[368308768,1751107854224,-460.0,0.00021643,2]
[368308769,1751107854233,-662.57,0.00021643,2]
[368308770,1751107854242,-508.65,0.00021643,2]
[368308771,1751107854251,-1756.01,0.00021643,2]
[368308772,1751107854260,-460.0,0.00021643,2]
[368308773,1751107854270,-460.0,0.00021643,2]
[368308774,1751107854279,-460.0,0.00021643,2]
[368308775,1751107854288,-460.0,0.00021643,2]
[368308776,1751107854297,-1580.07,0.00021643,2]
[368308777,1751107854306,-460.0,0.00021643,2]
[368308778,1751107854315,-1519.25,0.00021643,2]
[368308779,1751107854325,-3328.36,0.00021643,2]
[368308780,1751107854334,-460.0,0.00021643,2]
[368308781,1751107854343,-1369.75,0.00021643,2]
[368308782,1751107854352,-491.44,0.00021643,2]
[368308783,1751107854361,-460.0,0.00021643,2]
[368308784,1751107854370,-485.48,0.00021643,2]
[368308785,1751107854380,-3736.37,0.00021643,2]
[368308786,1751107854389,-492.69,0.00021643,2]
[368308787,1751107854398,-257.36330647,0.00021643,2]
[368308788,1751107854407,-835.54,0.00021643,2]
[368308789,1751107854417,-577.11,0.00021643,2]
[368308790,1751107854427,-1751.0,0.00021643,2]
[368308791,1751107854436,-1367.17,0.00021643,2]
[368308792,1751107854445,-1278.28,0.00021643,2]
[368308793,1751107854455,-460.0,0.00021643,2]
[368308794,1751107854465,-501.32,0.00021643,2]
[368308795,1751107854474,-537.21,0.00021643,2]
[368308796,1751107854484,-1034.74,0.00021643,2]
[368308797,1751107854493,-151.0,0.00021643,2]
[368308798,1751107854503,-2391.36,0.00021643,2]
[368308799,1751107854512,-151.0,0.00021643,2]
[368308800,1751107854522,-460.0,0.00021643,2]
[368308801,1751107854531,-157.99232,0.00021643,2]
[368308802,1751107854541,-2917.0,0.00021644,2]
[368308803,1751107854551,-1340.0,0.00021648,2]
[368308804,1751107854560,-2917.0,0.00021671,2]
[368308805,1751107854569,-7054.58916906,0.00021698,2]
[368308806,1751107854578,-2917.0,0.00021698,2]
[368308807,1751107854587,-3509.91,0.000217,2]
[368308808,1751107854596,-2917.0,0.00021726,2]
[368308809,1751107854606,-151.0,0.00021743,2]
[368308810,1751107854616,-278.022671,0.00021743,2]
[368308811,1751107854626,-151.0,0.00021743,2]
[368308812,1751107854639,-151.0,0.00021743,2]
[368308813,1751107854649,-151.0,0.00021743,2]
[368308814,1751107854658,-5000.0,0.00021743,2]
[368308815,1751107854668,-25000.0,0.00021743,2]
[368308816,1751107854678,-2922.62538489,0.00021753,2]
[368308817,1751107854688,-6766.37400411,0.00021762,5]
[368308818,1751107854698,-409.30435699,0.0002178,17]
[368308819,1751107854707,-151.0,0.00021813,5]
[368308820,1751107854717,-159.7516344,0.00021836,2]
[368308821,1751107854726,-240.0,0.00021841,2]
[368308822,1751107854735,-1340.0,0.00021846,2]
[368308823,1751107854744,-348.70013626,0.00021848,2]
[368308824,1751107854754,-153.0,0.0002189,2]
[368308825,1751107854763,-177.5104021,0.0002189,2]
[368308826,1751107854774,-355.0208042,0.0002189,2]
[368308827,1751107854784,-159.266168,0.0002189,2]
[368308828,1751107854800,-177.5104021,0.0002189,2]
[368308829,1751107854810,-159.266168,0.0002189,2]
[368308830,1751107854819,-177.5104021,0.0002189,2]
[368308831,1751107854829,-159.266168,0.0002189,2]
[368308832,1751107854839,-159.266168,0.0002189,2]
[368308833,1751107854849,-177.5104021,0.0002189,2]
[368308834,1751107854858,-159.266168,0.0002189,2]
[368308835,1751107854869,-159.266168,0.0002189,2]
[368308836,1751107854878,-170.43098,0.000219,15]
[368308837,1751107854888,-1017.61085888,0.000219,2]
[368308838,1751107854897,-151.0,0.00021917,2]
[368308839,1751107854907,-151.0,0.00021917,2]
[368308840,1751107854917,-490.514659,0.00021917,2]
[368308841,1751107854926,-490.514659,0.00021917,2]
[368308842,1751107854936,-151.0,0.00021917,2]
[368308843,1751107854945,-460.0,0.00021917,2]
[368308844,1751107854955,-302.35048185,0.00021917,2]
[368308845,1751107854965,-505.15,0.00021917,2]
[368308846,1751107854975,-460.0,0.00021917,2]
[368308847,1751107854985,-724.12,0.00021917,2]
[368308848,1751107854995,-352.10601099,0.00021917,2]
[368308849,1751107855009,-107.89398901,0.00021917,2]
[368308850,1751107855019,-3452.55235346,0.00021917,2]
[368308851,1751107855030,-550.73773191,0.00021917,2]
[368308852,1751107855163,-460.0,0.00019178,2]
[368308853,1751107855173,-460.0,0.00019452,2]
[368308854,1751107855182,-4632.21718438,0.00021917,2]
[368308855,1751107855194,-3864.49273025,0.00021917,2]
[368308856,1751107855203,-982.63,0.00021917,2]
[368308857,1751107855213,-1598.57,0.00021917,2]
[368308858,1751107855223,-620.2,0.00021917,2]
[368308859,1751107855232,-484.88,0.00021917,2]
[368308860,1751107855241,-483.77,0.00021917,2]
[368308861,1751107855251,-460.0,0.00021917,2]
[368308862,1751107855260,-554.23,0.00021917,2]
[368308863,1751107855270,-937.25,0.00021917,2]
[368308864,1751107855279,-460.0,0.00021917,2]
[368308865,1751107855289,-460.0,0.00021917,2]
[368308866,1751107855298,-1844.04,0.00021917,2]
[368308867,1751107855308,-2290.42,0.00021917,2]
[368308868,1751107855317,-625.05,0.00021917,2]
[368308869,1751107855326,-894.13,0.00021917,2]
[368308870,1751107855336,-460.0,0.00021917,2]
[368308871,1751107855345,-586.39,0.00021917,2]
[368308872,1751107855354,-3082.45,0.00021917,2]
[368308873,1751107855364,-1454.00726303,0.00021917,2]
[368308874,1751107855376,-526.97,0.00021917,2]
[368308875,1751107855389,-403.50273697,0.00021917,2]
[368308876,1751107855399,-542.91,0.00021917,2]
[368308877,1751107855409,-460.0,0.00021917,2]
[368308878,1751107855418,-662.57,0.00021917,2]
[368308879,1751107855427,-508.65,0.00021917,2]
[368308880,1751107855436,-1756.01,0.00021917,2]
[368308881,1751107855446,-460.0,0.00021917,2]
[368308882,1751107855455,-460.0,0.00021917,2]
[368308883,1751107855464,-460.0,0.00021917,2]
[368308884,1751107855475,-460.0,0.00021917,2]
[368308885,1751107855484,-460.0,0.00021917,2]
[368308886,1751107855494,-615.97906289,0.00021917,2]
[368308888,1751107887478,239.552674,0.00013699,2]
[368308890,1751108240558,5000.0,0.000181,2]
[368308891,1751108289046,5000.0,0.000181,2]
[368308893,1751108350471,4671.13722891,0.000181,2]
[368308894,1751108350493,328.86277109,0.000181,2]
[368308895,1751108412808,5000.0,0.000181,2]
[368308896,1751108474758,5000.0,0.000181,2]
[368308897,1751108533948,5000.0,0.000181,2]
[368308898,1751108593485,4671.13722891,0.000181,2]
[368308899,1751108593509,328.86277109,0.000181,2]
[368308900,1751108658016,500.0,0.00024658,120]
[368308901,1751108669715,5000.0,0.000181,2]
[368308902,1751108683257,163.0,0.000181,2]
[368308903,1751108684732,163.0,0.000181,2]
[368308904,1751108689601,163.0,0.000181,3]
[368308905,1751108717890,5000.0,0.000181,2]
[368308906,1751108734624,4136.07837369,0.000181,2]
[368308907,1751108778413,5000.0,0.000181,2]
[368308908,1751108793942,46.05885522,0.000181,2]
[368308909,1751108793965,817.86277109,0.000181,2]
[368308910,1751108848121,-189.91116204,0.00018232,2]
[368308911,1751108848143,-191.30708682,0.00018602,2]
[368308912,1751108848163,-264.33823955,0.000189,2]
[368308913,1751108848184,-28.73194175,0.00019168,2]
[368308920,1751108962055,-166.47001583,0.00018976,2]
[368308966,1751109032608,-4801.52998417,0.00018976,2]
[368308968,1751109032618,-646.44138002,0.00019168,2]
[368308969,1751109032628,-300.0,0.00019176,2]
[368308970,1751109032637,-1200.0,0.00019176,2]
[368308971,1751109032649,-300.0,0.00019176,2]
[368308972,1751109032659,-500.0,0.00019177,2]
[368308973,1751109032668,-500.0,0.00019177,2]
[368308974,1751109032678,-507.69432261,0.00019177,2]
[368308975,1751109032687,-500.0,0.00019177,2]
[368308976,1751109032696,-500.0,0.00019177,2]
[368308978,1751109032706,-450.0,0.00019177,2]
[368308980,1751109032715,-523.29851084,0.00019177,2]
[368308999,1751109032888,-500.0,0.00019177,2]
[368309001,1751109032897,-500.0,0.00019177,2]
[368309003,1751109032907,-500.0,0.00019177,2]
[368309005,1751109032916,-500.0,0.00019177,2]
[368309007,1751109032925,-460.0,0.00019178,2]